bitfinex/quotes_BTCUSD_20250718
["timestamp","ask_amount","ask_price","bid_price","bid_amount"]
[1752803116633,1.10719403,120440.0,120430.0,1e-08]
[1752803116841,1.25863403,120440.0,120430.0,1e-08]
[1752803117243,1.10719403,120440.0,120430.0,1e-08]
[1752803117460,1.25875403,120440.0,120430.0,1e-08]
[1752803117670,0.6549642,120440.0,120430.0,1e-08]
[1752803117898,1.10719403,120440.0,120430.0,1e-08]
[1752803118111,1.15719403,120440.0,120430.0,1e-08]
[1752803118320,1.31983403,120440.0,120430.0,1e-08]
[1752803118533,0.7159642,120440.0,120430.0,1e-08]
[1752803118749,0.8817242,120440.0,120430.0,1e-08]
[1752803118958,0.8818442,120440.0,120430.0,1e-08]
[1752803119168,0.7299642,120440.0,120430.0,1e-08]
[1752803119378,0.8818442,120440.0,120430.0,1e-08]
[1752803120428,0.7299642,120440.0,120430.0,1e-08]
[1752803120668,0.6799642,120440.0,120430.0,1e-08]
[1752803120874,0.8318842,120440.0,120430.0,1e-08]
[1752803121083,0.8318442,120440.0,120430.0,1e-08]
[1752803122803,0.6799642,120440.0,120430.0,1e-08]
[1752803123012,0.8318442,120440.0,120430.0,1e-08]
[1752803123218,0.6799642,120440.0,120430.0,1e-08]
[1752803123422,0.8026442,120440.0,120430.0,1e-08]
[1752803123634,0.8025242,120440.0,120430.0,1e-08]
[1752803123835,0.6507642,120440.0,120430.0,1e-08]
[1752803124015,0.8026442,120440.0,120430.0,1e-08]
[1752803124214,0.6507642,120440.0,120430.0,1e-08]
[1752803124669,0.8025242,120440.0,120430.0,1e-08]
[1752803124864,0.6507642,120440.0,120430.0,1e-08]
[1752803125085,0.8024042,120440.0,120430.0,1e-08]
[1752803125328,0.8162042,120440.0,120430.0,1e-08]
[1752803126236,0.6645642,120440.0,120430.0,1e-08]
[1752803126444,0.8182642,120440.0,120430.0,1e-08]
[1752803128184,0.6666242,120440.0,120430.0,1e-08]
[1752803128364,0.8179042,120440.0,120430.0,1e-08]
[1752803129470,0.8428402,120440.0,120430.0,1e-08]
[1752803130142,0.6777602,120440.0,120430.0,1e-08]
[1752803130616,0.8286802,120440.0,120430.0,1e-08]
[1752803131512,0.85333769,120440.0,120430.0,1e-08]
[1752803132189,0.86713769,120440.0,120430.0,1e-08]
[1752803133096,0.88233769,120440.0,120430.0,1e-08]
[1752803133341,0.88229769,120440.0,120430.0,1e-08]
[1752803133833,0.85329769,120440.0,120430.0,1e-08]
[1752803134912,0.85341769,120440.0,120430.0,1e-08]
[1752803136771,0.70241769,120440.0,120430.0,1e-08]
[1752803136989,0.85321769,120440.0,120430.0,1e-08]
[1752803137241,0.70241769,120440.0,120430.0,1e-08]
[1752803137498,0.85321769,120440.0,120430.0,1e-08]
[1752803137731,0.70241769,120440.0,120430.0,1e-08]
[1752803137927,0.85317769,120440.0,120430.0,1e-08]
[1752803142104,0.70241769,120440.0,120430.0,1e-08]
[1752803142319,0.85265769,120440.0,120430.0,1e-08]
[1752803142787,0.85253769,120440.0,120430.0,1e-08]
[1752803142995,0.70241769,120440.0,120430.0,1e-08]
[1752803143227,0.85253769,120440.0,120430.0,1e-08]
[1752803143655,0.70241769,120440.0,120430.0,1e-08]
[1752803143905,0.31810935,120440.0,120430.0,0.03423001]
[1752803144107,0.29317335,120440.0,120430.0,0.03737001]
[1752803144317,0.4578342,120440.0,120430.0,0.03737001]
[1752803144579,0.29317335,120440.0,120430.0,0.03737001]
[1752803144786,0.91006403,120440.0,120430.0,0.03737001]
[1752803145206,0.20766307,120440.0,120430.0,0.03737001]
[1752803145411,0.20766307,120440.0,120430.0,0.21174515]
[1752803145619,0.35882307,120440.0,120430.0,0.22004865]
[1752803145829,0.35882307,120440.0,120430.0,0.22835202]
[1752803146039,0.35882307,120440.0,120430.0,0.24495841]
[1752803146040,0.19276487,120440.0,120430.0,0.24495841]
[1752803146252,0.16508,120440.0,120430.0,0.71157266]
[1752803146465,0.02230233,120440.0,120430.0,0.71157266]
[1752803146677,0.19610762,120440.0,120430.0,0.71257266]
[1752803146898,0.04490755,120440.0,120430.0,0.67146869]
[1752803147134,0.18780487,120440.0,120430.0,0.67146869]
[1752803147350,0.0226048,120440.0,120430.0,0.67146868]
[1752803147549,0.16550233,120440.0,120430.0,0.67146868]
[1752803147779,0.15950233,120440.0,120430.0,0.67046868]
[1752803148196,0.1512,120440.0,120430.0,0.67146868]
[1752803148408,0.02490569,120450.0,120440.0,0.22216561]
[1752803148601,0.17590569,120450.0,120440.0,0.22419561]
[1752803148809,0.17590569,120450.0,120440.0,0.23563787]
[1752803148810,0.00830171,120450.0,120440.0,0.23563787]
[1752803149036,0.01672709,120460.0,120450.0,0.0083022]
[1752803149244,0.34189874,120460.0,120450.0,0.21901833]
[1752803149666,0.33359765,120460.0,120450.0,0.22732039]
[1752803150368,0.33359765,120460.0,120450.0,0.23562238]
[1752803150587,0.33229635,120460.0,120450.0,0.22832039]
[1752803150795,0.32399491,120460.0,120450.0,0.22001833]
[1752803151212,0.32999491,120460.0,120450.0,0.22101833]
[1752803151429,0.78222474,120460.0,120450.0,0.03837]
[1752803152675,0.80302316,120460.0,120450.0,0.002]
[1752803153096,0.95358316,120460.0,120450.0,0.002]
[1752803153907,0.80302316,120460.0,120450.0,0.0181]
[1752803154138,0.95358316,120460.0,120450.0,0.0339]
[1752803154379,0.95047316,120460.0,120450.0,0.0339]
[1752803154586,0.95047316,120460.0,120450.0,0.03884]
[1752803154587,0.17915491,120460.0,120450.0,0.03884]
[1752803154804,0.72209502,120460.0,120450.0,0.0339]
[1752803155012,0.72209502,120460.0,120450.0,0.0181]
[1752803155013,0.73663587,120460.0,120450.0,0.0181]
[1752803155226,0.88683587,120460.0,120450.0,0.0181]
[1752803155456,0.88683587,120460.0,120430.0,0.01848]
[1752803155457,0.88683587,120460.0,120430.0,0.032]
[1752803155459,0.18266307,120440.0,120430.0,0.032]
[1752803155657,0.33282307,120440.0,120430.0,0.03694]
[1752803155866,0.79959375,120440.0,120430.0,0.03694]
[1752803156070,0.79955375,120440.0,120430.0,0.03694]
[1752803156523,0.19720392,120440.0,120430.0,0.03694]
[1752803156762,0.79951375,120440.0,120430.0,0.03694]
[1752803156976,0.64943375,120440.0,120430.0,0.03694]
[1752803157398,0.79951375,120440.0,120430.0,0.03694]
[1752803157605,0.80051375,120440.0,120430.0,0.03894]
[1752803158723,0.19820392,120440.0,120430.0,0.03894]
[1752803158941,0.34828392,120440.0,120430.0,0.21331507]
[1752803159358,0.18990138,120440.0,120430.0,0.03894]
[1752803159566,0.33998138,120440.0,120430.0,0.03894]
[1752803160304,0.36642285,120440.0,120430.0,0.03894]
[1752803160531,0.33998138,120440.0,120430.0,0.03894]
[1752803160772,0.79221121,120440.0,120430.0,0.03894]
[1752803161469,0.77767036,120440.0,120430.0,0.03894]
[1752803161675,0.62759036,120440.0,120430.0,0.03894]
[1752803161905,0.77767036,120440.0,120430.0,0.03894]
[1752803162526,0.79221121,120440.0,120430.0,0.03894]
[1752803163264,0.79430121,120440.0,120430.0,0.03596]
[1752803164298,0.79430121,120440.0,120430.0,0.002]
[1752803164299,0.88292149,120440.0,120430.0,0.002]
[1752803164731,0.79922878,120440.0,120430.0,0.002]
[1752803165244,0.18269341,120420.0,120410.0,0.0004]
[1752803165454,0.87260352,120420.0,120410.0,0.0004]
[1752803165719,0.87571352,120420.0,120410.0,0.0004]
[1752803166392,0.72563352,120420.0,120410.0,0.0004]
[1752803166619,0.42348369,120420.0,120410.0,0.00055002]
[1752803166841,0.74687277,120420.0,120410.0,0.00055002]
[1752803167055,0.90095277,120420.0,120410.0,0.00155002]
[1752803167503,0.90295277,120420.0,120410.0,0.00255002]
[1752803167919,0.30064294,120420.0,120410.0,0.00255002]
[1752803168135,0.29544294,120420.0,120410.0,0.03819002]
[1752803168345,0.20993266,120420.0,120410.0,0.03819002]
[1752803168757,0.81224249,120420.0,120410.0,0.03819002]
[1752803169423,0.66216249,120420.0,120410.0,0.03521002]
[1752803169649,0.82887334,120420.0,120410.0,0.03521002]
[1752803170307,0.37664351,120420.0,120410.0,0.03521002]
[1752803170525,0.82887334,120420.0,120410.0,0.03325002]
[1752803171192,0.82887334,120420.0,120410.0,0.03521002]
[1752803174435,0.82678334,120420.0,120410.0,0.03819002]
[1752803174853,0.82883334,120420.0,120410.0,0.01755002]
[1752803175068,0.83194334,120420.0,120410.0,0.00255002]
[1752803175508,0.83194334,120420.0,120410.0,0.01775002]
[1752803176174,0.82883334,120420.0,120410.0,0.03435002]
[1752803176591,0.82883334,120420.0,120410.0,0.03631002]
[1752803177859,0.67879334,120420.0,120410.0,0.03631002]
[1752803178066,0.82883334,120420.0,120410.0,0.03631002]
[1752803180935,0.37660351,120420.0,120410.0,0.03631002]
[1752803181167,0.82883334,120420.0,120410.0,0.03631002]
[1752803182878,0.82879334,120420.0,120410.0,0.03631002]
[1752803183514,0.82879334,120420.0,120410.0,0.03435002]
[1752803183515,0.67879334,120420.0,120410.0,0.03435002]
[1752803183730,0.83176334,120420.0,120410.0,0.03435002]
[1752803186531,0.68176334,120420.0,120410.0,0.03435002]
[1752803186745,0.83172334,120420.0,120410.0,0.03435002]
[1752803186969,0.83172334,120420.0,120410.0,0.00255002]
[1752803187208,0.83168334,120420.0,120410.0,0.00255002]
[1752803187473,0.89595437,120420.0,120410.0,0.00255002]
[1752803188575,0.35315426,120420.0,120410.0,0.03955002]
[1752803188874,0.20323426,120420.0,120410.0,0.03955002]
[1752803189115,0.80749409,120420.0,120410.0,0.03634002]
[1752803190268,0.02260805,120420.0,120410.0,0.20564918]
[1752803190511,0.03091176,120420.0,120410.0,0.23886789]
[1752803190754,0.16418371,120420.0,120410.0,0.23886789]
[1752803190987,0.16418371,120420.0,120410.0,0.32437817]
[1752803190988,0.01430378,120420.0,120410.0,0.32437817]
[1752803191228,0.006,120420.0,120410.0,0.70570667]
[1752803191694,0.006,120420.0,120410.0,0.66437817]
[1752803192881,0.002,120420.0,120410.0,0.66337817]
[1752803193111,0.02490941,120430.0,120420.0,0.22229732]
[1752803193340,0.02490941,120430.0,120420.0,0.3098976]
[1752803193572,0.02490941,120430.0,120420.0,0.3131076]
[1752803193805,0.19928448,120430.0,120420.0,0.3131076]
[1752803194511,0.02490941,120430.0,120420.0,0.3151076]
[1752803194739,0.02590934,120430.0,120420.0,0.3151076]
[1752803194971,0.03421271,120430.0,120420.0,0.3151076]
[1752803195225,0.02590934,120430.0,120420.0,0.3151076]
[1752803195453,0.03421271,120430.0,120420.0,0.3151076]
[1752803196365,0.18401271,120430.0,120420.0,0.3151076]
[1752803197100,0.18501271,120430.0,120420.0,0.3161076]
[1752803197527,0.19331615,120430.0,120420.0,0.3161076]
[1752803198616,0.18501271,120430.0,120420.0,0.3161076]
[1752803198858,0.01030295,120430.0,120420.0,0.3161076]
[1752803199123,0.0269092,120430.0,120420.0,0.3161076]
[1752803199363,0.18497257,120430.0,120420.0,0.3161076]
[1752803199587,0.16006295,120430.0,120420.0,0.3161076]
[1752803199816,0.01030295,120430.0,120420.0,0.3161076]
[1752803200051,0.01030295,120430.0,120420.0,0.34209034]
[1752803200298,0.01860604,120430.0,120420.0,0.3161076]
[1752803200518,0.03521271,120430.0,120420.0,0.3161076]
[1752803200948,0.02690927,120430.0,120420.0,0.3161076]
[1752803201206,0.04351608,120430.0,120420.0,0.3161076]
[1752803201426,0.002,120430.0,120420.0,0.6561076]
[1752803201874,0.002,120430.0,120420.0,0.8058276]
[1752803202742,0.001,120430.0,120420.0,1.25701743]
[1752803202983,0.15798164,120450.0,120440.0,0.22116561]
[1752803203200,0.01660349,120450.0,120440.0,0.22646561]
[1752803203931,0.00830164,120450.0,120440.0,0.22646561]
[1752803204147,0.20437338,120460.0,120440.0,0.22646561]
[1752803204148,0.33231649,120460.0,120450.0,0.21284812]
[1752803204364,0.33231649,120460.0,120450.0,0.03229]
[1752803204583,0.33231649,120460.0,120450.0,0.0438022]
[1752803204799,0.18263649,120460.0,120450.0,0.0438022]
[1752803205030,0.33231649,120460.0,120450.0,0.21814819]
[1752803205247,0.33231649,120460.0,120450.0,0.21814833]
[1752803205678,0.33231649,120460.0,120450.0,0.2098462]
[1752803205945,0.19540147,120460.0,120450.0,0.0355]
[1752803206165,0.007,120460.0,120450.0,0.21084613]
[1752803206387,0.18754293,120460.0,120450.0,0.22844976]
[1752803206613,0.19584409,120460.0,120450.0,0.22844976]
[1752803207525,0.20414539,120460.0,120450.0,0.22844976]
[1752803207741,0.1958445,120460.0,120450.0,0.23675154]
[1752803207952,0.1958445,120460.0,120450.0,0.22844983]
[1752803208610,0.013,120460.0,120450.0,0.66226182]
[1752803208822,0.013,120460.0,120450.0,0.81186182]
[1752803209255,0.013,120460.0,120450.0,0.66226182]
[1752803209461,0.33214726,120490.0,120480.0,0.0316]
[1752803209682,0.33229753,120490.0,120480.0,0.03369]
[1752803209909,0.16841866,120490.0,120480.0,0.22459255]
[1752803210129,0.3427069,120490.0,120480.0,0.22459269]
[1752803210337,0.3427069,120490.0,120480.0,0.23289247]
[1752803210338,0.16841866,120490.0,120480.0,0.23289247]
[1752803210571,0.1767181,120490.0,120480.0,0.23289247]
[1752803210787,0.1767181,120490.0,120480.0,0.22559269]
[1752803211005,0.1767181,120490.0,120480.0,0.23389254]
[1752803211207,0.34270697,120490.0,120480.0,0.21729277]
[1752803211632,0.34270697,120490.0,120480.0,0.21929277]
[1752803211930,0.32610858,120490.0,120480.0,0.03669]
[1752803212157,0.32610858,120490.0,120480.0,0.21929277]
[1752803212380,0.02715769,120490.0,120480.0,0.27188305]
[1752803212607,0.03545665,120490.0,120480.0,0.22759269]
[1752803212825,0.19323602,120490.0,120480.0,0.24419218]
[1752803213036,0.18493665,120490.0,120480.0,0.24419218]
[1752803213692,0.16833812,120490.0,120480.0,0.2441917]
[1752803213916,0.20144552,120490.0,120480.0,0.21929256]
[1752803214142,0.1931467,120490.0,120480.0,0.2192927]
[1752803214384,0.01885853,120490.0,120480.0,0.22759248]
[1752803214828,0.02715783,120490.0,120480.0,0.2192927]
[1752803215076,0.02715783,120490.0,120480.0,0.22759248]
[1752803215077,0.03545727,120490.0,120480.0,0.22759248]
[1752803215306,0.0188588,120490.0,120480.0,0.2192927]
[1752803215518,0.02715817,120490.0,120480.0,0.22759255]
[1752803215721,0.0188588,120490.0,120480.0,0.24419198]
[1752803215984,0.00015027,120490.0,120480.0,1.65496116]
[1752803216211,0.00015027,120490.0,120480.0,1.19208606]
[1752803216445,0.00844909,120490.0,120480.0,1.28523736]
[1752803216656,0.00844916,120490.0,120480.0,0.67292226]
[1752803217086,0.00844916,120490.0,120480.0,0.55321278]
[1752803217087,0.19933565,120490.0,120480.0,0.55321278]
[1752803217308,0.02809789,120490.0,120480.0,0.73051261]
[1752803217515,0.01979825,120490.0,120480.0,0.58619226]
[1752803217730,0.00115027,120490.0,120480.0,0.73881226]
[1752803217935,0.00115027,120490.0,120480.0,0.67492254]
[1752803218146,0.00115027,120490.0,120480.0,1.12496482]
[1752803218580,0.00944916,120490.0,120480.0,0.57181283]
[1752803218792,0.19308629,120490.0,120480.0,0.56459283]
[1752803219010,0.02272853,120490.0,120480.0,0.55620277]
[1752803219223,0.03102797,120490.0,120480.0,0.55742446]
[1752803219435,0.0300279,120490.0,120480.0,0.40506439]
[1752803219645,0.63146079,120490.0,120470.0,0.19870501]
[1752803219859,0.02489928,120480.0,120470.0,0.20700583]
[1752803220068,0.02987928,120480.0,120470.0,0.55530651]
[1752803220292,0.02987928,120480.0,120470.0,0.56360712]
[1752803220293,0.01327958,120480.0,120470.0,0.56360712]
[1752803220512,0.02987928,120480.0,120470.0,0.56360712]
[1752803220729,0.03817934,120480.0,120470.0,0.55530658]
[1752803221378,0.03817934,120480.0,120470.0,0.55530651]
[1752803221603,0.03817934,120480.0,120470.0,0.54700583]
[1752803221604,0.02987928,120480.0,120470.0,0.54700583]
[1752803221842,0.03817927,120480.0,120470.0,0.56360705]
[1752803222097,0.02987928,120480.0,120470.0,0.57390752]
[1752803222323,0.02987928,120480.0,120470.0,0.55730651]
[1752803222598,0.02157936,120480.0,120470.0,0.57590738]
[1752803222795,0.01034958,120480.0,120470.0,0.56758705]
[1752803223057,0.01864929,120480.0,120470.0,0.57588738]
[1752803223288,0.18552914,120480.0,120470.0,0.56958712]
[1752803223788,0.18552914,120480.0,120470.0,0.56958726]
[1752803224048,0.34616221,120480.0,120470.0,0.0367]
[1752803224316,0.78990484,120480.0,120470.0,0.004]
[1752803226188,0.64062484,120480.0,120470.0,0.004]
[1752803226414,0.78986484,120480.0,120470.0,0.004]
[1752803226629,0.64062484,120480.0,120470.0,0.004]
[1752803226847,0.78986484,120480.0,120470.0,0.004]
[1752803228579,0.33782256,120480.0,120470.0,0.004]
[1752803228758,0.78986484,120480.0,120470.0,0.004]
[1752803230159,0.78986484,120480.0,120470.0,0.68336033]
[1752803230160,0.001,120480.0,120470.0,0.68336033]
[1752803230371,0.001,120480.0,120470.0,0.66625372]
[1752803230591,0.001,120480.0,120470.0,1.118296]
[1752803230816,0.001,120480.0,120470.0,1.267496]
[1752803231079,0.001,120480.0,120470.0,1.267456]
[1752803231515,0.00015027,120490.0,120480.0,0.56200221]
[1752803231733,0.00015027,120490.0,120480.0,0.64949249]
[1752803231955,0.00015027,120490.0,120480.0,1.10475477]
[1752803232175,0.00015027,120490.0,120480.0,1.25391477]
[1752803232808,0.00015027,120490.0,120480.0,1.25691477]
[1752803232809,0.00115027,120490.0,120480.0,1.25691477]
[1752803233037,0.00115027,120490.0,120480.0,1.19351439]
[1752803233253,0.0082962,120530.0,120520.0,0.50594756]
[1752803233485,0.02538972,120530.0,120520.0,0.56511885]
[1752803233703,0.02538972,120530.0,120520.0,0.71745885]
[1752803233704,0.0005007,120530.0,120520.0,0.71745885]
[1752803233927,0.0005007,120530.0,120520.0,1.1352215]
[1752803234181,0.0005007,120530.0,120520.0,0.83229922]
[1752803234397,0.0005007,120530.0,120520.0,0.70153735]
[1752803234620,0.0075007,120530.0,120520.0,0.85165735]
[1752803234869,0.0075007,120530.0,120520.0,0.87606405]
[1752803235079,0.0005007,120530.0,120520.0,0.87506405]
[1752803235295,0.0005007,120530.0,120520.0,0.87502405]
[1752803235519,0.0015007,120530.0,120520.0,0.72594405]
[1752803235956,0.0015007,120530.0,120520.0,0.87502405]
[1752803236392,0.0015007,120530.0,120520.0,0.72594405]
[1752803236619,0.0015007,120530.0,120520.0,0.87498405]
[1752803237044,0.0035007,120530.0,120520.0,0.87498405]
[1752803237329,0.01179677,120530.0,120520.0,0.87498405]
[1752803237567,0.0035007,120530.0,120520.0,0.87498405]
[1752803238008,0.0035007,120530.0,120520.0,0.72594405]
[1752803238230,0.0035007,120530.0,120520.0,0.87498405]
[1752803238668,0.0035007,120530.0,120520.0,0.72594405]
[1752803238888,0.0035007,120530.0,120520.0,1.32698633]
[1752803239332,0.0035007,120530.0,120520.0,0.72594405]
[1752803239579,0.0035007,120530.0,120520.0,0.87494405]
[1752803240040,0.0035007,120530.0,120520.0,0.84557396]
[1752803240957,0.0035007,120530.0,120520.0,1.29761624]
[1752803241196,0.0035007,120530.0,120520.0,0.84557396]
[1752803242570,0.0035007,120530.0,120520.0,1.14865624]
[1752803242786,0.0035007,120530.0,120520.0,1.29757624]
[1752803242995,0.0035007,120530.0,120520.0,1.38333586]
[1752803243417,0.0025007,120530.0,120520.0,1.38333586]
[1752803243630,0.0025007,120530.0,120520.0,1.23541586]
[1752803243876,0.0025007,120530.0,120520.0,1.38429586]
[1752803244079,0.0025007,120530.0,120520.0,1.29853624]
[1752803244287,0.0025007,120530.0,120520.0,0.84649396]
[1752803244501,0.0025007,120530.0,120520.0,1.14965624]
[1752803244718,0.0025007,120530.0,120520.0,1.29853624]
[1752803244960,0.0025007,120530.0,120520.0,1.38429586]
[1752803245172,0.0025007,120530.0,120520.0,1.29853624]
[1752803245614,0.0005007,120530.0,120520.0,1.29853624]
[1752803246293,0.0005007,120530.0,120520.0,0.84649396]
[1752803246718,0.0005007,120530.0,120520.0,1.29853624]
[1752803248916,0.0005007,120530.0,120520.0,0.69761396]
[1752803249306,0.0005007,120530.0,120520.0,0.84641396]
[1752803250680,0.00879677,120530.0,120520.0,0.84637396]
[1752803250895,0.01709297,120530.0,120520.0,0.84637396]
[1752803251131,0.01709297,120530.0,120520.0,0.82801583]
[1752803251567,0.4982754,120530.0,120520.0,0.65162913]
[1752803251796,0.20492047,120530.0,120520.0,0.67226196]
[1752803252020,0.65911388,120530.0,120520.0,0.66396486]
[1752803252253,0.6508174,120530.0,120520.0,0.341]
[1752803252705,0.91594768,120530.0,120520.0,0.001]
[1752803252956,0.34419085,120530.0,120520.0,0.001]
[1752803253184,1.01123317,120530.0,120520.0,0.001]
[1752803253404,0.86251317,120530.0,120520.0,0.001]
[1752803253829,1.01819317,120530.0,120520.0,0.002]
[1752803254053,0.19087073,120500.0,120490.0,0.17428812]
[1752803254271,0.01659523,120510.0,120500.0,0.17427371]
[1752803254489,0.0082982,120500.0,120490.0,0.37506583]
[1752803254702,0.00829813,120500.0,120490.0,0.37704583]
[1752803255116,0.01659523,120510.0,120500.0,0.18257212]
[1752803255297,0.20125234,120510.0,120500.0,0.17427378]
[1752803255714,0.20445234,120510.0,120500.0,0.17427378]
[1752803256360,0.20445234,120510.0,120500.0,0.18257239]
[1752803256840,0.20445234,120510.0,120500.0,0.1659751]
[1752803257052,0.1659751,120500.0,120490.0,0.31462875]
[1752803257254,0.17637378,120500.0,120490.0,0.33122749]
[1752803257491,0.18787232,120500.0,120490.0,0.19088672]
[1752803257706,0.03019494,120500.0,120490.0,0.35612484]
[1752803257945,0.03529355,120500.0,120490.0,0.37172491]
[1752803258149,0.02699488,120500.0,120490.0,0.37370443]
[1752803258361,0.03529342,120500.0,120490.0,0.37370443]
[1752803258778,0.02699488,120500.0,120490.0,0.37370443]
[1752803259018,0.0021,120500.0,120490.0,0.37370443]
[1752803259238,0.0041,120500.0,120490.0,0.38886443]
[1752803259425,0.002,120500.0,120490.0,0.39206443]
[1752803260644,0.003,120500.0,120490.0,0.39206443]
[1752803260991,0.003,120500.0,120490.0,0.38372547]
[1752803261195,0.003,120500.0,120490.0,0.39202443]
[1752803261599,0.003,120500.0,120490.0,0.87333742]
[1752803262025,0.003,120500.0,120490.0,0.81753471]
[1752803262436,0.003,120500.0,120490.0,0.66897471]
[1752803262861,0.001,120500.0,120490.0,0.81749471]
[1752803263355,0.0280906,120520.0,120510.0,0.18255711]
[1752803263592,0.01039675,120520.0,120510.0,0.17425932]
[1752803263803,0.01869371,120520.0,120510.0,0.34135509]
[1752803264022,0.02699081,120520.0,120510.0,0.34965288]
[1752803264256,0.20123567,120520.0,120510.0,0.32471932]
[1752803264482,0.03728811,120520.0,120510.0,0.33301724]
[1752803264917,0.0041,120520.0,120510.0,0.23403441]
[1752803265147,0.002,120520.0,120510.0,0.24413046]
[1752803265362,0.002,120520.0,120510.0,0.39261046]
[1752803266922,0.002,120520.0,120510.0,0.39257046]
[1752803267544,0.01029675,120520.0,120510.0,0.39257046]
[1752803268670,0.03728784,120520.0,120510.0,0.24093046]
[1752803268887,0.03728777,120520.0,120510.0,0.38929046]
[1752803269087,0.02069357,120520.0,120510.0,0.38929046]
[1752803269759,0.02899046,120520.0,120510.0,0.39249046]
[1752803270176,0.02069357,120520.0,120510.0,0.39249046]
[1752803270379,0.01239682,120520.0,120510.0,0.39249046]
[1752803270582,0.01029682,120520.0,120510.0,0.39249046]
[1752803271503,0.01859378,120520.0,120510.0,0.39249046]
[1752803271710,0.02159378,120520.0,120510.0,0.39249046]
[1752803271908,0.04028805,120520.0,120510.0,0.38099261]
[1752803272097,0.03199081,120520.0,120510.0,0.38099261]
[1752803272351,0.04028798,120520.0,120510.0,0.38099261]
[1752803272554,0.03199081,120520.0,120510.0,0.38099261]
[1752803272971,0.02369378,120520.0,120510.0,0.38099261]
[1752803273393,0.01329682,120520.0,120510.0,0.38410261]
[1752803273606,0.02159385,120520.0,120510.0,0.38398261]
[1752803274431,0.01329682,120520.0,120510.0,0.38398261]
[1752803275016,0.02159371,120520.0,120510.0,0.38398261]
[1752803276057,0.03818777,120520.0,120510.0,0.38398261]
[1752803276274,0.02989067,120520.0,120510.0,0.38398261]
[1752803276613,0.02159371,120520.0,120510.0,0.38398261]
[1752803276814,0.02989081,120520.0,120510.0,0.38398261]
[1752803277232,0.03192074,120520.0,120510.0,0.38398261]
[1752803277439,0.02362371,120520.0,120510.0,0.38398261]
[1752803277701,0.02159371,120520.0,120510.0,0.38398261]
[1752803277859,0.02989074,120520.0,120510.0,0.38398261]
[1752803278068,0.02159371,120520.0,120510.0,0.38398261]
[1752803278290,0.02989067,120520.0,120510.0,0.38398261]
[1752803278691,0.04648494,120520.0,120510.0,0.23574261]
[1752803278916,0.04851494,120520.0,120510.0,0.23574261]
[1752803279123,0.04851494,120520.0,120510.0,0.38386261]
[1752803279540,0.04851494,120520.0,120510.0,0.38075261]
[1752803279713,0.04851542,120520.0,120510.0,0.38075268]
[1752803280320,0.51113763,120520.0,120510.0,0.38905026]
[1752803280680,0.50284026,120520.0,120510.0,0.38905026]
[1752803281186,0.5111375,120520.0,120510.0,0.38905026]
[1752803281392,0.68009547,120520.0,120510.0,0.16596133]
[1752803281577,0.17425905,120510.0,120500.0,0.67060006]
[1752803281788,0.17425905,120510.0,120500.0,0.52256006]
[1752803281789,0.64192126,120510.0,120500.0,0.52256006]
[1752803282027,0.64192126,120510.0,120500.0,0.48804]
[1752803282271,0.63362354,120510.0,120500.0,0.34]
[1752803282502,0.17427378,120500.0,120490.0,0.51428805]
[1752803282726,0.64722453,120500.0,120490.0,0.51428805]
[1752803282964,0.65023453,120500.0,120490.0,0.50598887]
[1752803283172,0.64193599,120500.0,120490.0,0.34]
[1752803283651,0.63363731,120500.0,120480.0,0.34570228]
[1752803283866,0.4822306,120490.0,120480.0,0.44781254]
[1752803284090,0.4822306,120490.0,120480.0,0.79611219]
[1752803284091,0.02993735,120490.0,120480.0,0.79611219]
[1752803284317,0.01862812,120490.0,120480.0,0.64811219]
[1752803284527,0.02692742,120490.0,120480.0,0.79816219]
[1752803284741,0.47092075,120500.0,120490.0,0.18258726]
[1752803284933,0.17525925,120510.0,120500.0,0.18257212]
[1752803285179,0.33254697,120510.0,120500.0,0.20046225]
[1752803285615,0.19804788,120520.0,120510.0,0.18255724]
[1752803285823,0.81590746,120520.0,120510.0,0.18255731]
[1752803286008,0.67628456,120520.0,120510.0,0.19085516]
[1752803286241,0.17525925,120510.0,120500.0,0.36600198]
[1752803286458,0.01659688,120500.0,120490.0,0.52948796]
[1752803286673,0.66382121,120500.0,120490.0,0.67740824]
[1752803286880,0.65552294,120500.0,120490.0,0.68570754]
[1752803287160,0.65552294,120500.0,120480.0,0.10071028]
[1752803287161,0.18258726,120490.0,120480.0,0.10071028]
[1752803287349,0.65024947,120490.0,120480.0,0.51430278]
[1752803287523,0.65024947,120490.0,120480.0,0.52260277]
[1752803287943,0.65024947,120490.0,120480.0,0.53090269]
[1752803288144,0.02163839,120490.0,120480.0,0.53090269]
[1752803288320,0.02163839,120490.0,120480.0,0.58099219]
[1752803288321,0.02692721,120490.0,120480.0,0.58099219]
[1752803288540,0.02692721,120490.0,120480.0,0.58410219]
[1752803288977,0.03522651,120490.0,120480.0,0.58510219]
[1752803289216,0.02692721,120490.0,120480.0,0.58510219]
[1752803289383,0.03522651,120490.0,120480.0,0.58510219]
[1752803289747,0.03522651,120490.0,120480.0,0.65511816]
[1752803289977,0.04352588,120490.0,120480.0,0.65711816]
[1752803290186,0.04352588,120490.0,120480.0,0.58610219]
[1752803290384,0.20121586,120490.0,120480.0,0.57780254]
[1752803290587,0.19291677,120490.0,120480.0,0.56639269]
[1752803290798,0.18461754,120490.0,120480.0,0.55809277]
[1752803291000,0.17631824,120490.0,120480.0,0.54979278]
[1752803291418,0.17631824,120490.0,120480.0,0.38179013]
[1752803291627,0.63064108,120490.0,120480.0,0.67094265]
[1752803291832,0.63064108,120490.0,120480.0,0.52310265]
[1752803292039,0.63064108,120490.0,120480.0,0.67086265]
[1752803292264,0.16801887,120490.0,120480.0,0.67086265]
[1752803293038,0.16801887,120490.0,120480.0,0.68746263]
[1752803293039,0.17631824,120490.0,120480.0,0.68746263]
[1752803293250,0.20121573,120490.0,120480.0,0.65985175]
[1752803293472,0.19291677,120490.0,120480.0,0.71351248]
[1752803293691,0.18461761,120490.0,120480.0,0.70521263]
[1752803294118,0.00203,120490.0,120480.0,0.72054178]
[1752803294340,0.03559979,120490.0,120480.0,0.74544099]
[1752803294554,0.01032896,120490.0,120480.0,0.59772099]
[1752803294814,0.01862805,120490.0,120480.0,0.74544099]
[1752803295657,0.02692728,120490.0,120480.0,0.73714134]
[1752803295879,0.02692728,120490.0,120480.0,0.58942141]
[1752803296095,0.49255949,120490.0,120480.0,0.69491163]
[1752803296324,0.49255949,120490.0,120480.0,0.56383106]
[1752803296961,0.48426026,120490.0,120480.0,0.56283106]
[1752803297177,0.49555949,120490.0,120480.0,0.56283106]
[1752803297402,0.03293721,120490.0,120480.0,0.56283106]
[1752803297626,0.49555942,120490.0,120480.0,0.56283106]
[1752803298047,0.50385872,120490.0,120480.0,0.72567106]
[1752803298260,0.49555942,120490.0,120480.0,0.72567106]
[1752803298488,0.49254942,120490.0,120480.0,0.72776106]
[1752803298667,0.00503,120490.0,120480.0,0.74697106]